[Event "Titled Tuesday Blitz June 20 Late 2023"]
[White "Lalanne, Pablo"]
[Black "Levine, David"]
[WhiteFideId "112151"]
[BlackFideId "2011611"]
[WhiteElo "2120"]
[BlackElo "2124"]
[Result "1-0"]
[Round "3"]
[TimeControl "180+2"]
[Date "2023.06.20"]
[WhiteClock "0:00:51"]
[BlackClock "0:00:00"]
[Board "185"]

1. e4 {[%clk 0:03:00]}  e5 {[%clk 0:02:56]} 2. Nf3 {[%clk 0:03:00]}  Nc6 {[%clk 0:02:56]} 3. Bb5 {[%clk 0:03:00]}  a6 {[%clk 0:02:56]} 4. Ba4 {[%clk 0:03:01]}  Nf6 {[%clk 0:02:55]} 5. O-O {[%clk 0:03:01]}  Be7 {[%clk 0:02:55]} 6. Re1 {[%clk 0:03:01]}  b5 {[%clk 0:02:55]} 7. Bb3 {[%clk 0:03:01]}  d6 {[%clk 0:02:56]} 8. c3 {[%clk 0:03:01]}  O-O {[%clk 0:02:55]} 9. h3 {[%clk 0:03:02]}  Bb7 {[%clk 0:02:55]} 10. d4 {[%clk 0:03:01]}  Re8 {[%clk 0:02:54]} 11. Nbd2 {[%clk 0:03:01]}  Bf8 {[%clk 0:02:54]} 12. a4 {[%clk 0:02:59]}  h6 {[%clk 0:02:47]} 13. Bc2 {[%clk 0:02:58]}  Nb8 {[%clk 0:02:40]} 14. Bd3 {[%clk 0:02:30]}  Nbd7 {[%clk 0:02:22]} 15. axb5 {[%clk 0:02:28]}  axb5 {[%clk 0:02:21]} 16. Rxa8 {[%clk 0:02:28]}  Qxa8 {[%clk 0:02:21]} 17. Bxb5 {[%clk 0:02:25]}  exd4 {[%clk 0:02:12]} 18. cxd4 {[%clk 0:02:19]}  Bxe4 {[%clk 0:02:10]} 19. Nxe4 {[%clk 0:02:15]}  Rxe4 {[%clk 0:02:09]} 20. Be3 {[%clk 0:02:00]}  Qd5 {[%clk 0:01:58]} 21. Qa4 {[%clk 0:01:50]}  Nb6 {[%clk 0:01:55]} 22. Qb4 {[%clk 0:01:42]}  c5 {[%clk 0:01:30]} 23. Qa5 {[%clk 0:01:29]}  Nc4 {[%clk 0:01:21]} 24. Bxc4 {[%clk 0:01:26]}  Qxc4 {[%clk 0:01:21]} 25. Nd2 {[%clk 0:01:24]}  Qd3 {[%clk 0:00:48]} 26. Nxe4 {[%clk 0:01:23]}  Nxe4 {[%clk 0:00:48]} 27. dxc5 {[%clk 0:01:17]}  dxc5 {[%clk 0:00:46]} 28. Qa3 {[%clk 0:01:10]}  Qc2 {[%clk 0:00:41]} 29. Rc1 {[%clk 0:01:07]}  Qe2 {[%clk 0:00:37]} 30. Qa4 {[%clk 0:00:58]}  c4 {[%clk 0:00:10]} 31. Qxc4 {[%clk 0:00:52]}  Qxb2 {[%clk 0:00:00]} 32. Qxe4 {[%clk 0:00:51]} 1-0


[Site "https://www.chess.com"]

[Event "Titled Tuesday Blitz June 20 Late 2023"]
[White "Bongo Akanga Ndjila, Barthelemy"]
[Black "Skaric, Djuro"]
[WhiteFideId "10609431"]
[BlackFideId "934569"]
[WhiteElo "1768"]
[BlackElo "2282"]
[Result "1/2-1/2"]
[Round "3"]
[TimeControl "180+2"]
[Date "2023.06.20"]
[WhiteClock "0:00:13"]
[BlackClock "0:00:15"]
[Board "188"]

1. d4 {[%clk 0:02:48]}  d6 {[%clk 0:03:00]} 2. c4 {[%clk 0:02:35]}  g6 {[%clk 0:03:00]} 3. Nc3 {[%clk 0:02:34]}  Bg7 {[%clk 0:02:59]} 4. e4 {[%clk 0:02:35]}  Nf6 {[%clk 0:02:58]} 5. Be2 {[%clk 0:02:35]}  O-O {[%clk 0:02:58]} 6. Nf3 {[%clk 0:02:35]}  Nc6 {[%clk 0:02:57]} 7. d5 {[%clk 0:02:33]}  Ne5 {[%clk 0:02:57]} 8. Nd4 {[%clk 0:02:31]}  c5 {[%clk 0:02:56]} 9. Nc2 {[%clk 0:02:26]}  a6 {[%clk 0:02:55]} 10. Ne3 {[%clk 0:02:21]}  Rb8 {[%clk 0:02:50]} 11. f4 {[%clk 0:02:21]}  Nxc4 {[%clk 0:02:35]} 12. Bxc4 {[%clk 0:02:06]}  b5 {[%clk 0:02:35]} 13. Bd3 {[%clk 0:02:06]}  c4 {[%clk 0:02:34]} 14. Bc2 {[%clk 0:02:05]}  b4 {[%clk 0:02:34]} 15. Na4 {[%clk 0:02:04]}  b3 {[%clk 0:02:33]} 16. axb3 {[%clk 0:02:04]}  cxb3 {[%clk 0:02:33]} 17. Bd3 {[%clk 0:02:03]}  Bd7 {[%clk 0:02:24]} 18. Bd2 {[%clk 0:02:01]}  e6 {[%clk 0:02:21]} 19. dxe6 {[%clk 0:01:54]}  fxe6 {[%clk 0:02:16]} 20. O-O {[%clk 0:01:55]}  d5 {[%clk 0:02:16]} 21. e5 {[%clk 0:01:49]}  Nh5 {[%clk 0:02:13]} 22. Ng4 {[%clk 0:01:46]}  Bb5 {[%clk 0:01:56]} 23. Qe2 {[%clk 0:01:40]}  Qd7 {[%clk 0:01:47]} 24. Nc5 {[%clk 0:01:32]}  Qe7 {[%clk 0:01:39]} 25. Nxa6 {[%clk 0:01:10]}  Bxd3 {[%clk 0:01:23]} 26. Qxd3 {[%clk 0:01:10]}  Ra8 {[%clk 0:01:18]} 27. Bb4 {[%clk 0:01:07]}  Qa7+ {[%clk 0:01:06]} 28. Bc5 {[%clk 0:01:07]}  Qb7 {[%clk 0:01:00]} 29. Bxf8 {[%clk 0:01:05]}  Bxf8 {[%clk 0:01:00]} 30. Nf6+ {[%clk 0:01:00]}  Nxf6 {[%clk 0:00:53]} 31. exf6 {[%clk 0:01:01]}  Kf7 {[%clk 0:00:52]} 32. Rfc1 {[%clk 0:00:50]}  Qb6+ {[%clk 0:00:50]} 33. Kh1 {[%clk 0:00:47]}  Bd6 {[%clk 0:00:49]} 34. g3 {[%clk 0:00:20]}  Ra7 {[%clk 0:00:45]} 35. Kg2 {[%clk 0:00:18]}  Qb7 {[%clk 0:00:39]} 36. Kh3 {[%clk 0:00:16]}  Kxf6 {[%clk 0:00:28]} 37. Qd4+ {[%clk 0:00:16]}  Kf7 {[%clk 0:00:27]} 38. Qd3 {[%clk 0:00:16]}  Qe7 {[%clk 0:00:24]} 39. Rc3 {[%clk 0:00:15]}  h5 {[%clk 0:00:22]} 40. Rxb3 {[%clk 0:00:15]}  Qd7 {[%clk 0:00:21]} 41. Rb5 {[%clk 0:00:12]}  e5+ {[%clk 0:00:21]} 42. Kg2 {[%clk 0:00:11]}  d4 {[%clk 0:00:21]} 43. Qe4 {[%clk 0:00:11]}  Qc8 {[%clk 0:00:19]} 44. Qd5+ {[%clk 0:00:11]}  Ke7 {[%clk 0:00:17]} 45. Rba5 {[%clk 0:00:11]}  Qc2+ {[%clk 0:00:16]} 46. Kh3 {[%clk 0:00:11]}  Qf5+ {[%clk 0:00:16]} 47. Kg2 {[%clk 0:00:12]}  Qc2+ {[%clk 0:00:15]} 48. Kh3 {[%clk 0:00:12]}  Qf5+ {[%clk 0:00:15]} 49. Kg2 {[%clk 0:00:13]}  Qc2+ {[%clk 0:00:15]} 1/2-1/2


[Site "https://www.chess.com"]

[Event "Titled Tuesday Blitz June 20 Late 2023"]
[White "dorpato"]
[Black "K2JW"]
[WhiteElo "2049"]
[BlackElo "2335"]
[Result "0-1"]
[Round "3"]
[TimeControl "180+2"]
[Date "2023.06.20"]
[WhiteClock "0:00:05"]
[BlackClock "0:00:18"]
[Board "189"]

1. e4 {[%clk 0:02:58]}  c5 {[%clk 0:02:43]} 2. Nc3 {[%clk 0:02:56]}  Nc6 {[%clk 0:02:40]} 3. g3 {[%clk 0:02:49]}  g6 {[%clk 0:02:36]} 4. Bg2 {[%clk 0:02:31]}  Bg7 {[%clk 0:02:36]} 5. d3 {[%clk 0:02:27]}  e6 {[%clk 0:02:33]} 6. Be3 {[%clk 0:02:27]}  Nd4 {[%clk 0:02:24]} 7. Qd2 {[%clk 0:02:27]}  Ne7 {[%clk 0:02:24]} 8. Nf3 {[%clk 0:02:15]}  d5 {[%clk 0:02:04]} 9. O-O {[%clk 0:01:49]}  Nxf3+ {[%clk 0:01:59]} 10. Bxf3 {[%clk 0:01:36]}  d4 {[%clk 0:02:00]} 11. Bh6 {[%clk 0:01:27]}  dxc3 {[%clk 0:01:51]} 12. bxc3 {[%clk 0:01:20]}  O-O {[%clk 0:01:50]} 13. Bxg7 {[%clk 0:01:18]}  Kxg7 {[%clk 0:01:51]} 14. h4 {[%clk 0:01:16]}  Nc6 {[%clk 0:01:50]} 15. h5 {[%clk 0:01:00]}  e5 {[%clk 0:01:23]} 16. Kg2 {[%clk 0:00:40]}  h6 {[%clk 0:00:48]} 17. Rh1 {[%clk 0:00:24]}  g5 {[%clk 0:00:41]} 18. Be2 {[%clk 0:00:19]}  f5 {[%clk 0:00:36]} 19. Rag1 {[%clk 0:00:15]}  fxe4 {[%clk 0:00:31]} 20. Qe3 {[%clk 0:00:14]}  exd3 {[%clk 0:00:24]} 21. Bxd3 {[%clk 0:00:13]}  Bf5 {[%clk 0:00:22]} 22. Bxf5 {[%clk 0:00:11]}  Rxf5 {[%clk 0:00:23]} 23. Qxc5 {[%clk 0:00:11]}  Qe7 {[%clk 0:00:23]} 24. Qe3 {[%clk 0:00:10]}  Raf8 {[%clk 0:00:23]} 25. Rf1 {[%clk 0:00:09]}  e4 {[%clk 0:00:20]} 26. g4 {[%clk 0:00:08]}  Rf3 {[%clk 0:00:18]} 27. Qe2 {[%clk 0:00:06]}  Qe6 {[%clk 0:00:18]} 28. Rhg1 {[%clk 0:00:05]}  Qxg4+ {[%clk 0:00:18]} 29. Kh2 {[%clk 0:00:05]}  Rh3# {[%clk 0:00:18]} 0-1


[Site "https://www.chess.com"]

[Event "Titled Tuesday Blitz June 20 Late 2023"]
[White "Burke, Paul"]
[Black "Shapiro, Daniel"]
[WhiteFideId "2605767"]
[BlackFideId "2001780"]
[WhiteElo "1914"]
[BlackElo "2329"]
[Result "0-1"]
[Round "3"]
[TimeControl "180+2"]
[Date "2023.06.20"]
[WhiteClock "0:00:00"]
[BlackClock "0:00:17"]
[Board "192"]

1. e4 {[%clk 0:02:42]}  e5 {[%clk 0:02:59]} 2. Nf3 {[%clk 0:02:42]}  Nc6 {[%clk 0:02:59]} 3. Bc4 {[%clk 0:02:42]}  Be7 {[%clk 0:02:59]} 4. d4 {[%clk 0:02:41]}  d6 {[%clk 0:02:59]} 5. c3 {[%clk 0:02:40]}  Nf6 {[%clk 0:02:57]} 6. Ng5 {[%clk 0:02:39]}  O-O {[%clk 0:02:57]} 7. Nxf7 {[%clk 0:02:39]}  Rxf7 {[%clk 0:02:56]} 8. Bxf7+ {[%clk 0:02:39]}  Kxf7 {[%clk 0:02:56]} 9. Qb3+ {[%clk 0:02:39]}  Kf8 {[%clk 0:02:49]} 10. O-O {[%clk 0:02:37]}  exd4 {[%clk 0:02:27]} 11. cxd4 {[%clk 0:02:34]}  Nxd4 {[%clk 0:02:24]} 12. Qd1 {[%clk 0:02:20]}  c5 {[%clk 0:02:18]} 13. Nc3 {[%clk 0:02:20]}  Be6 {[%clk 0:02:14]} 14. Bg5 {[%clk 0:02:14]}  Kg8 {[%clk 0:02:05]} 15. Bxf6 {[%clk 0:02:13]}  Bxf6 {[%clk 0:02:03]} 16. f4 {[%clk 0:02:13]}  b5 {[%clk 0:01:50]} 17. f5 {[%clk 0:02:04]}  Bf7 {[%clk 0:01:43]} 18. Nd5 {[%clk 0:01:51]}  Be5 {[%clk 0:01:25]} 19. Qg4 {[%clk 0:01:31]}  Bxd5 {[%clk 0:01:19]} 20. exd5 {[%clk 0:01:30]}  Qf6 {[%clk 0:01:19]} 21. a4 {[%clk 0:01:20]}  b4 {[%clk 0:01:12]} 22. Rae1 {[%clk 0:01:19]}  c4 {[%clk 0:01:02]} 23. Qd1 {[%clk 0:00:54]}  Rc8 {[%clk 0:00:57]} 24. g4 {[%clk 0:00:45]}  Qf7 {[%clk 0:00:54]} 25. Qd2 {[%clk 0:00:28]}  a5 {[%clk 0:00:49]} 26. Qg2 {[%clk 0:00:26]}  Rc5 {[%clk 0:00:47]} 27. g5 {[%clk 0:00:18]}  Qxd5 {[%clk 0:00:47]} 28. Qg4 {[%clk 0:00:14]}  c3 {[%clk 0:00:38]} 29. g6 {[%clk 0:00:13]}  h6 {[%clk 0:00:31]} 30. f6 {[%clk 0:00:13]}  Qe6 {[%clk 0:00:26]} 31. f7+ {[%clk 0:00:11]}  Kf8 {[%clk 0:00:25]} 32. Qxe6 {[%clk 0:00:11]}  Nxe6 {[%clk 0:00:24]} 33. bxc3 {[%clk 0:00:11]}  Rxc3 {[%clk 0:00:19]} 34. Rc1 {[%clk 0:00:08]}  Nf4 {[%clk 0:00:17]} 35. Rxc3 {[%clk 0:00:07]}  bxc3 {[%clk 0:00:17]} 36. Re1 {[%clk 0:00:00]}  Nxg6 {[%clk 0:00:17]} 0-1


[Site "https://www.chess.com"]

[Event "Titled Tuesday Blitz June 20 Late 2023"]
[White "Zakhartsov, Vladimir"]
[Black "Paravyan, David"]
[WhiteFideId "4145097"]
[BlackFideId "4194985"]
[WhiteElo "2508"]
[BlackElo "2563"]
[Result "1/2-1/2"]
[Round "4"]
[TimeControl "180+2"]
[Date "2023.06.20"]
[WhiteClock "0:01:01"]
[BlackClock "0:01:25"]
[Board "3"]

1. d4 {[%clk 0:02:56]}  Nf6 {[%clk 0:02:59]} 2. c4 {[%clk 0:02:55]}  g6 {[%clk 0:02:59]} 3. Nc3 {[%clk 0:02:53]}  d5 {[%clk 0:02:59]} 4. cxd5 {[%clk 0:02:53]}  Nxd5 {[%clk 0:03:00]} 5. e4 {[%clk 0:02:54]}  Nxc3 {[%clk 0:03:00]} 6. bxc3 {[%clk 0:02:55]}  Bg7 {[%clk 0:03:00]} 7. Bb5+ {[%clk 0:02:55]}  c6 {[%clk 0:02:57]} 8. Ba4 {[%clk 0:02:55]}  O-O {[%clk 0:02:53]} 9. Nf3 {[%clk 0:02:54]}  c5 {[%clk 0:02:35]} 10. Ke2 {[%clk 0:02:48]}  Kh8 {[%clk 0:02:11]} 11. Re1 {[%clk 0:02:42]}  Kg8 {[%clk 0:02:08]} 12. Kf1 {[%clk 0:02:42]}  Kh8 {[%clk 0:02:08]} 13. Kg1 {[%clk 0:02:43]}  Kg8 {[%clk 0:02:09]} 14. Rf1 {[%clk 0:02:43]}  cxd4 {[%clk 0:02:04]} 15. cxd4 {[%clk 0:02:03]}  Bg4 {[%clk 0:02:04]} 16. Be3 {[%clk 0:01:58]}  Nc6 {[%clk 0:02:05]} 17. Bxc6 {[%clk 0:01:44]}  bxc6 {[%clk 0:02:05]} 18. Rc1 {[%clk 0:01:42]}  Qd7 {[%clk 0:01:58]} 19. h3 {[%clk 0:01:41]}  Bxf3 {[%clk 0:01:58]} 20. Qxf3 {[%clk 0:01:39]}  Bxd4 {[%clk 0:01:53]} 21. Rfd1 {[%clk 0:01:38]}  e5 {[%clk 0:01:54]} 22. Qf6 {[%clk 0:01:21]}  Qd8 {[%clk 0:01:34]} 23. Qxc6 {[%clk 0:01:01]}  Rc8 {[%clk 0:01:25]} 1/2-1/2


[Site "https://www.chess.com"]

[Event "Titled Tuesday Blitz June 20 Late 2023"]
[White "Kollars, Dmitrij"]
[Black "Babazada, Khazar"]
[WhiteFideId "12909572"]
[BlackFideId "13413554"]
[WhiteElo "2584"]
[BlackElo "2369"]
[Result "1-0"]
[Round "4"]
[TimeControl "180+2"]
[Date "2023.06.20"]
[WhiteClock "0:00:04"]
[BlackClock "0:00:04"]
[Board "5"]

1. e4 {[%clk 0:03:00]}  e5 {[%clk 0:02:57]} 2. Nf3 {[%clk 0:03:00]}  Nc6 {[%clk 0:02:58]} 3. Bb5 {[%clk 0:03:00]}  a6 {[%clk 0:02:59]} 4. Ba4 {[%clk 0:03:00]}  Nf6 {[%clk 0:02:59]} 5. Nc3 {[%clk 0:03:01]}  b5 {[%clk 0:02:54]} 6. Bb3 {[%clk 0:03:01]}  Bc5 {[%clk 0:02:55]} 7. O-O {[%clk 0:02:59]}  d6 {[%clk 0:02:55]} 8. a4 {[%clk 0:02:58]}  Rb8 {[%clk 0:02:55]} 9. axb5 {[%clk 0:02:58]}  axb5 {[%clk 0:02:55]} 10. Nd5 {[%clk 0:02:58]}  O-O {[%clk 0:02:49]} 11. c3 {[%clk 0:02:59]}  Nxd5 {[%clk 0:02:47]} 12. Bxd5 {[%clk 0:02:58]}  Ne7 {[%clk 0:02:47]} 13. Bb3 {[%clk 0:02:49]}  Bb6 {[%clk 0:02:47]} 14. d4 {[%clk 0:02:48]}  exd4 {[%clk 0:02:45]} 15. cxd4 {[%clk 0:02:48]}  Bg4 {[%clk 0:02:41]} 16. Be3 {[%clk 0:02:47]}  d5 {[%clk 0:02:40]} 17. e5 {[%clk 0:02:41]}  Nf5 {[%clk 0:02:40]} 18. Qd3 {[%clk 0:02:33]}  Qd7 {[%clk 0:02:30]} 19. Bc2 {[%clk 0:02:20]}  g6 {[%clk 0:02:11]} 20. Nd2 {[%clk 0:02:12]}  f6 {[%clk 0:02:00]} 21. h3 {[%clk 0:01:58]}  Nxe3 {[%clk 0:01:58]} 22. Qxe3 {[%clk 0:01:58]}  Bf5 {[%clk 0:01:55]} 23. Bxf5 {[%clk 0:01:21]}  Qxf5 {[%clk 0:01:55]} 24. Nf3 {[%clk 0:01:21]}  Rbe8 {[%clk 0:01:45]} 25. Qc3 {[%clk 0:01:12]}  fxe5 {[%clk 0:01:42]} 26. dxe5 {[%clk 0:01:09]}  Qe4 {[%clk 0:01:20]} 27. Qc6 {[%clk 0:01:05]}  Qc4 {[%clk 0:01:12]} 28. Qd7 {[%clk 0:00:51]}  d4 {[%clk 0:00:45]} 29. Ng5 {[%clk 0:00:43]}  Rf5 {[%clk 0:00:38]} 30. Qxh7+ {[%clk 0:00:36]}  Kf8 {[%clk 0:00:39]} 31. Qxg6 {[%clk 0:00:27]}  Rfxe5 {[%clk 0:00:38]} 32. Qf6+ {[%clk 0:00:22]}  Kg8 {[%clk 0:00:38]} 33. Qg6+ {[%clk 0:00:20]}  Kf8 {[%clk 0:00:38]} 34. Ra3 {[%clk 0:00:19]}  Qxf1+ {[%clk 0:00:32]} 35. Kh2 {[%clk 0:00:18]}  Ke7 {[%clk 0:00:28]} 36. Qf7+ {[%clk 0:00:11]}  Kd6 {[%clk 0:00:24]} 37. Qf6+ {[%clk 0:00:11]}  Kc5 {[%clk 0:00:18]} 38. Nf7 {[%clk 0:00:09]}  Re1 {[%clk 0:00:16]} 39. Qf5+ {[%clk 0:00:07]}  Kb4 {[%clk 0:00:16]} 40. Qf3 {[%clk 0:00:04]}  Qg1+ {[%clk 0:00:07]} 41. Kg3 {[%clk 0:00:04]}  R1e3 {[%clk 0:00:05]} 42. fxe3 {[%clk 0:00:04]}  Rxe3 {[%clk 0:00:06]} 43. Rxe3 {[%clk 0:00:04]}  dxe3 {[%clk 0:00:07]} 44. Ne5 {[%clk 0:00:03]}  Qe1+ {[%clk 0:00:06]} 45. Kg4 {[%clk 0:00:03]}  Qd2 {[%clk 0:00:06]} 46. Qe4+ {[%clk 0:00:03]}  Qd4 {[%clk 0:00:07]} 47. Nc6+ {[%clk 0:00:03]}  Kb3 {[%clk 0:00:04]} 48. Nxd4+ {[%clk 0:00:04]} 1-0


[Site "https://www.chess.com"]

[Event "Titled Tuesday Blitz June 20 Late 2023"]
[White "Grigoriants, Sergey"]
[Black "Yoo, Christopher Woojin"]
[WhiteFideId "4130804"]
[BlackFideId "30909694"]
[WhiteElo "2502"]
[BlackElo "2528"]
[Result "0-1"]
[Round "4"]
[TimeControl "180+2"]
[Date "2023.06.20"]
[WhiteClock "0:00:05"]
[BlackClock "0:00:22"]
[Board "6"]

1. d4 {[%clk 0:02:56]}  d5 {[%clk 0:02:58]} 2. c4 {[%clk 0:02:55]}  e6 {[%clk 0:02:59]} 3. Nc3 {[%clk 0:02:55]}  Bb4 {[%clk 0:02:54]} 4. e3 {[%clk 0:02:54]}  Nf6 {[%clk 0:02:53]} 5. Bd3 {[%clk 0:02:54]}  O-O {[%clk 0:02:52]} 6. Nf3 {[%clk 0:02:53]}  dxc4 {[%clk 0:02:48]} 7. Bxc4 {[%clk 0:02:52]}  b6 {[%clk 0:02:49]} 8. O-O {[%clk 0:02:51]}  Bb7 {[%clk 0:02:49]} 9. Qe2 {[%clk 0:02:46]}  Nbd7 {[%clk 0:02:44]} 10. Bd2 {[%clk 0:02:14]}  c5 {[%clk 0:02:41]} 11. a3 {[%clk 0:02:01]}  Bxc3 {[%clk 0:02:40]} 12. Bxc3 {[%clk 0:02:01]}  Ne4 {[%clk 0:02:40]} 13. Rac1 {[%clk 0:01:25]}  Nxc3 {[%clk 0:02:23]} 14. Rxc3 {[%clk 0:01:24]}  Bxf3 {[%clk 0:02:21]} 15. Qxf3 {[%clk 0:01:23]}  cxd4 {[%clk 0:02:21]} 16. exd4 {[%clk 0:01:23]}  Rc8 {[%clk 0:02:16]} 17. h3 {[%clk 0:01:07]}  Nf6 {[%clk 0:02:16]} 18. Rd1 {[%clk 0:01:07]}  Qd6 {[%clk 0:02:07]} 19. d5 {[%clk 0:01:02]}  exd5 {[%clk 0:02:07]} 20. Ba6 {[%clk 0:00:29]}  Rxc3 {[%clk 0:01:57]} 21. Qxc3 {[%clk 0:00:30]}  Rd8 {[%clk 0:01:46]} 22. Qd4 {[%clk 0:00:31]}  Qc5 {[%clk 0:01:37]} 23. Be2 {[%clk 0:00:28]}  Qxd4 {[%clk 0:01:34]} 24. Rxd4 {[%clk 0:00:28]}  Kf8 {[%clk 0:01:35]} 25. Bf3 {[%clk 0:00:29]}  Ke7 {[%clk 0:01:35]} 26. Ra4 {[%clk 0:00:24]}  a5 {[%clk 0:01:24]} 27. b4 {[%clk 0:00:23]}  axb4 {[%clk 0:01:22]} 28. Rxb4 {[%clk 0:00:20]}  Rd6 {[%clk 0:01:22]} 29. Kf1 {[%clk 0:00:21]}  Nd7 {[%clk 0:01:21]} 30. Ke2 {[%clk 0:00:17]}  Ne5 {[%clk 0:01:13]} 31. Rb5 {[%clk 0:00:18]}  Ke6 {[%clk 0:01:04]} 32. a4 {[%clk 0:00:18]}  d4 {[%clk 0:01:02]} 33. Be4 {[%clk 0:00:14]}  d3+ {[%clk 0:01:01]} 34. Kd1 {[%clk 0:00:10]}  g6 {[%clk 0:00:28]} 35. f4 {[%clk 0:00:08]}  Nc4 {[%clk 0:00:28]} 36. Rb4 {[%clk 0:00:05]}  Rd4 {[%clk 0:00:22]} 0-1


[Site "https://www.chess.com"]

[Event "Titled Tuesday Blitz June 20 Late 2023"]
[White "Van Foreest, Jorden"]
[Black "Beerdsen, Thomas"]
[WhiteFideId "1039784"]
[BlackFideId "1030108"]
[WhiteElo "2633"]
[BlackElo "2553"]
[Result "1-0"]
[Round "4"]
[TimeControl "180+2"]
[Date "2023.06.20"]
[WhiteClock "0:00:15"]
[BlackClock "0:00:06"]
[Board "7"]

1. e4 {[%clk 0:03:00]}  e5 {[%clk 0:02:57]} 2. Nf3 {[%clk 0:02:58]}  Nc6 {[%clk 0:02:58]} 3. Nc3 {[%clk 0:02:57]}  Nf6 {[%clk 0:02:57]} 4. g3 {[%clk 0:02:57]}  Rb8 {[%clk 0:02:56]} 5. h3 {[%clk 0:02:51]}  g6 {[%clk 0:02:53]} 6. Bg2 {[%clk 0:02:51]}  b5 {[%clk 0:02:53]} 7. d3 {[%clk 0:02:50]}  Bg7 {[%clk 0:02:52]} 8. O-O {[%clk 0:02:49]}  O-O {[%clk 0:02:52]} 9. Bg5 {[%clk 0:02:48]}  h6 {[%clk 0:02:52]} 10. Bxf6 {[%clk 0:02:48]}  Qxf6 {[%clk 0:02:50]} 11. a4 {[%clk 0:02:48]}  b4 {[%clk 0:02:49]} 12. Nd5 {[%clk 0:02:49]}  Qd6 {[%clk 0:02:50]} 13. Nd2 {[%clk 0:02:48]}  Ba6 {[%clk 0:02:47]} 14. Nc4 {[%clk 0:02:37]}  Bxc4 {[%clk 0:02:47]} 15. dxc4 {[%clk 0:02:38]}  Nd4 {[%clk 0:02:47]} 16. Qd3 {[%clk 0:02:28]}  c6 {[%clk 0:02:45]} 17. Ne3 {[%clk 0:02:23]}  b3 {[%clk 0:02:43]} 18. c5 {[%clk 0:02:14]}  Qxc5 {[%clk 0:02:21]} 19. c3 {[%clk 0:02:15]}  Ne6 {[%clk 0:02:22]} 20. h4 {[%clk 0:02:15]}  Rfd8 {[%clk 0:02:14]} 21. Rad1 {[%clk 0:02:04]}  h5 {[%clk 0:01:59]} 22. Bh3 {[%clk 0:01:54]}  Qe7 {[%clk 0:01:55]} 23. Qc4 {[%clk 0:01:28]}  Bh6 {[%clk 0:01:52]} 24. Rfe1 {[%clk 0:01:28]}  Nc5 {[%clk 0:01:50]} 25. Kh2 {[%clk 0:01:19]}  d6 {[%clk 0:01:47]} 26. Bg2 {[%clk 0:01:08]}  Qf6 {[%clk 0:01:46]} 27. Kg1 {[%clk 0:01:07]}  Kg7 {[%clk 0:01:35]} 28. Ra1 {[%clk 0:00:58]}  a5 {[%clk 0:01:35]} 29. Qe2 {[%clk 0:00:58]}  Bxe3 {[%clk 0:01:10]} 30. Qxe3 {[%clk 0:00:58]}  Qe7 {[%clk 0:01:06]} 31. Red1 {[%clk 0:00:56]}  Rd7 {[%clk 0:01:00]} 32. Bh3 {[%clk 0:00:56]}  Ne6 {[%clk 0:00:54]} 33. Qe2 {[%clk 0:00:52]}  Ra7 {[%clk 0:00:46]} 34. Qc4 {[%clk 0:00:51]}  Nc5 {[%clk 0:00:46]} 35. Rd2 {[%clk 0:00:49]}  Qf6 {[%clk 0:00:45]} 36. Rad1 {[%clk 0:00:48]}  Rd8 {[%clk 0:00:46]} 37. Kg2 {[%clk 0:00:46]}  Re7 {[%clk 0:00:42]} 38. Rf1 {[%clk 0:00:40]}  Ree8 {[%clk 0:00:41]} 39. Rfd1 {[%clk 0:00:39]}  Re7 {[%clk 0:00:38]} 40. Kg1 {[%clk 0:00:37]}  Ree8 {[%clk 0:00:35]} 41. Bg2 {[%clk 0:00:37]}  Rh8 {[%clk 0:00:35]} 42. Qe2 {[%clk 0:00:28]}  Kh7 {[%clk 0:00:28]} 43. Kh2 {[%clk 0:00:27]}  Rhg8 {[%clk 0:00:27]} 44. Qe3 {[%clk 0:00:27]}  g5 {[%clk 0:00:26]} 45. hxg5 {[%clk 0:00:25]}  Rxg5 {[%clk 0:00:26]} 46. Bh3 {[%clk 0:00:26]}  h4 {[%clk 0:00:10]} 47. Rxd6 {[%clk 0:00:15]}  hxg3+ {[%clk 0:00:11]} 48. fxg3 {[%clk 0:00:16]}  Rxd6 {[%clk 0:00:10]} 49. Rxd6 {[%clk 0:00:17]}  Rxg3 {[%clk 0:00:07]} 50. Bf5+ {[%clk 0:00:14]}  Qxf5 {[%clk 0:00:06]} 51. Qh6+ {[%clk 0:00:14]}  Kg8 {[%clk 0:00:06]} 52. Rd8# {[%clk 0:00:15]} 1-0


[Site "https://www.chess.com"]

[Event "Titled Tuesday Blitz June 20 Late 2023"]
[White "Le, Tuan Minh"]
[Black "Maximov, Dmitry"]
[WhiteFideId "12401153"]
[BlackFideId "14105659"]
[WhiteElo "2566"]
[BlackElo "2494"]
[Result "1-0"]
[Round "4"]
[TimeControl "180+2"]
[Date "2023.06.20"]
[WhiteClock "0:00:26"]
[BlackClock "0:00:03"]
[Board "8"]

1. d4 {[%clk 0:02:54]}  Nf6 {[%clk 0:02:59]} 2. Nf3 {[%clk 0:02:53]}  g6 {[%clk 0:02:59]} 3. Bg5 {[%clk 0:02:52]}  Bg7 {[%clk 0:02:59]} 4. Nbd2 {[%clk 0:02:41]}  O-O {[%clk 0:02:58]} 5. c3 {[%clk 0:02:37]}  d6 {[%clk 0:02:58]} 6. e4 {[%clk 0:02:37]}  h6 {[%clk 0:02:55]} 7. Bh4 {[%clk 0:02:34]}  Qe8 {[%clk 0:02:51]} 8. Bc4 {[%clk 0:02:26]}  e5 {[%clk 0:02:41]} 9. O-O {[%clk 0:02:26]}  Nc6 {[%clk 0:02:37]} 10. Re1 {[%clk 0:02:25]}  Kh7 {[%clk 0:02:29]} 11. Qc2 {[%clk 0:02:15]}  Nh5 {[%clk 0:02:25]} 12. dxe5 {[%clk 0:02:03]}  Nxe5 {[%clk 0:02:13]} 13. Bf1 {[%clk 0:01:51]}  Nxf3+ {[%clk 0:01:51]} 14. Nxf3 {[%clk 0:01:50]}  Bg4 {[%clk 0:01:51]} 15. Nd4 {[%clk 0:01:49]}  a6 {[%clk 0:01:44]} 16. f3 {[%clk 0:01:42]}  Bd7 {[%clk 0:01:43]} 17. Rad1 {[%clk 0:01:40]}  Qe5 {[%clk 0:01:34]} 18. Qd2 {[%clk 0:01:33]}  Rae8 {[%clk 0:01:27]} 19. Nc2 {[%clk 0:01:28]}  Bc6 {[%clk 0:01:03]} 20. Nb4 {[%clk 0:01:26]}  a5 {[%clk 0:00:54]} 21. Nc2 {[%clk 0:01:04]}  f5 {[%clk 0:00:40]} 22. exf5 {[%clk 0:01:01]}  Qxf5 {[%clk 0:00:40]} 23. Nd4 {[%clk 0:01:00]}  Qc5 {[%clk 0:00:36]} 24. Bf2 {[%clk 0:00:59]}  Qd5 {[%clk 0:00:31]} 25. c4 {[%clk 0:00:51]}  Qf7 {[%clk 0:00:30]} 26. Qxa5 {[%clk 0:00:47]}  Ra8 {[%clk 0:00:27]} 27. Qc3 {[%clk 0:00:38]}  Rxa2 {[%clk 0:00:26]} 28. Qb3 {[%clk 0:00:38]}  Raa8 {[%clk 0:00:25]} 29. Ne6 {[%clk 0:00:38]}  Rfe8 {[%clk 0:00:23]} 30. Nxg7 {[%clk 0:00:38]}  Nxg7 {[%clk 0:00:23]} 31. Qc3 {[%clk 0:00:38]}  Nf5 {[%clk 0:00:23]} 32. b4 {[%clk 0:00:38]}  b6 {[%clk 0:00:22]} 33. Bd3 {[%clk 0:00:36]}  h5 {[%clk 0:00:22]} 34. h3 {[%clk 0:00:31]}  Bb7 {[%clk 0:00:21]} 35. c5 {[%clk 0:00:26]}  bxc5 {[%clk 0:00:21]} 36. bxc5 {[%clk 0:00:27]}  dxc5 {[%clk 0:00:20]} 37. Qxc5 {[%clk 0:00:27]}  Rad8 {[%clk 0:00:13]} 38. Bc4 {[%clk 0:00:27]}  Rxe1+ {[%clk 0:00:11]} 39. Rxe1 {[%clk 0:00:28]}  Bd5 {[%clk 0:00:11]} 40. Bd3 {[%clk 0:00:26]}  c6 {[%clk 0:00:11]} 41. Bxf5 {[%clk 0:00:25]}  Qxf5 {[%clk 0:00:03]} 42. Qe7+ {[%clk 0:00:26]} 1-0


[Site "https://www.chess.com"]